fUSD/lending_fUSD_20250602
["ID","MTS","AMOUNT","RATE_DAILY","PERIOD"]
[363721944,1748844638358,-229.35,0.00019178,2]
[363721945,1748844638367,-420.0,0.00019178,2]
[363721946,1748844638377,-183.01621165,0.00019178,2]
[363721947,1748844638387,-263.79626277,0.00019178,2]
[363721948,1748844638396,-257.99845113,0.00019178,2]
[363721949,1748844638406,-255.48,0.00019178,2]
[363721950,1748844638415,-420.0,0.00019178,2]
[363721951,1748844638425,-162.4806884,0.00019178,2]
[363721952,1748844638435,-420.0,0.00019178,2]
[363721953,1748844638444,-420.0,0.00019178,2]
[363721954,1748844638454,-420.0,0.00019178,2]
[363721955,1748844638464,-420.0,0.00019178,2]
[363721956,1748844638473,-420.0,0.00019178,2]
[363721957,1748844638483,-424.88607596,0.00019178,2]
[363721958,1748844638493,-423.75979677,0.00019178,2]
[363721959,1748844638502,-423.63044775,0.00019178,2]
[363721960,1748844638512,-420.0,0.00019178,2]
[363721961,1748844638521,-549.56707348,0.00019178,2]
[363721962,1748844638531,-420.0,0.00019178,2]
[363721963,1748844638540,-413.24,0.00019178,2]
[363721964,1748844638550,-420.0,0.00019178,2]
[363721965,1748844638559,-240.12579841,0.00019178,2]
[363721966,1748844638569,-422.61178676,0.00019178,2]
[363721967,1748844638579,-420.0,0.00019178,2]
[363721968,1748844638589,-420.0,0.00019178,2]
[363721969,1748844638598,-366.32,0.00019178,2]
[363721970,1748844638608,-422.47335012,0.00019178,2]
[363721971,1748844638618,-272.5312209,0.00019178,2]
[363721972,1748844638685,-217.70497885,0.00019178,2]
[363721973,1748844638695,-121.16900385,0.00019178,2]
[363722109,1748844640131,-298.83099615,0.00019178,2]
[363722110,1748844640140,-420.0,0.00019178,2]
[363722112,1748844640150,-421.43350029,0.00019178,2]
[363722114,1748844640159,-420.0,0.00019178,2]
[363722116,1748844640168,-420.0,0.00019178,2]
[363722118,1748844640177,-420.0,0.00019178,2]
[363722120,1748844640187,-420.0,0.00019178,2]
[363722122,1748844640196,-195.83737405,0.00019178,2]
[363722124,1748844640205,-422.40956299,0.00019178,2]
[363722126,1748844640214,-237.44793655,0.00019178,2]
[363722128,1748844640223,-420.0,0.00019178,2]
[363722130,1748844640232,-424.18848088,0.00019178,2]
[363722132,1748844640242,-454.54650173,0.00019178,2]
[363722134,1748844640252,-314.72,0.00019178,2]
[363722136,1748844640261,-1127.38,0.00019178,2]
[363722138,1748844640270,-412.03849835,0.00019178,2]
[363722140,1748844640279,-420.0,0.00019178,2]
[363722142,1748844640288,-734.09,0.00019178,2]
[363722144,1748844640298,-420.0,0.00019178,2]
[363722146,1748844640307,-420.0,0.00019178,2]
[363722148,1748844640316,-420.0,0.00019178,2]
[363722150,1748844640326,-726.81,0.00019178,2]
[363722152,1748844640335,-420.0,0.00019178,2]
[363722154,1748844640344,-499.86445605,0.00019178,2]
[363722156,1748844640353,-420.0,0.00019178,2]
[363722158,1748844640363,-420.0,0.00019178,2]
[363722160,1748844640372,-420.0,0.00019178,2]
[363722162,1748844640381,-345.13939713,0.00019178,2]
[363722164,1748844640393,-74.86060287,0.00019178,2]
[363722166,1748844640403,-547.49974348,0.00019178,2]
[363722168,1748844640412,-420.0,0.00019178,2]
[363722170,1748844640421,-420.0,0.00019178,2]
[363722172,1748844640431,-420.0,0.00019178,2]
[363722173,1748844640439,-420.0,0.00019178,2]
[363722174,1748844640448,-168.28931106,0.00019178,2]
[363722175,1748844640458,-420.0,0.00019178,2]
[363722176,1748844640467,-420.0,0.00019178,2]
[363722177,1748844640476,-523.94,0.00019178,2]
[363722178,1748844640485,-962.5,0.00019178,2]
[363722179,1748844640495,-192.0448451,0.00019178,2]
[363722180,1748844640504,-306.58,0.00019178,2]
[363722181,1748844640513,-559.83,0.00019178,2]
[363722182,1748844640523,-241.59,0.00019178,2]
[363722183,1748844640532,-420.0,0.00019178,2]
[363722184,1748844640541,-608.51,0.00019178,2]
[363722185,1748844640550,-420.0,0.00019178,2]
[363722186,1748844640560,-420.0,0.00019178,2]
[363722187,1748844640569,-420.0,0.00019178,2]
[363722188,1748844640579,-478.89978989,0.00019178,2]
[363722189,1748844640588,-420.0,0.00019178,2]
[363722190,1748844640598,-797.13,0.00019178,2]
[363722191,1748844640607,-4868.58,0.00019178,2]
[363722192,1748844640617,-424.21997574,0.00019178,2]
[363722193,1748844640626,-420.0,0.00019178,2]
[363722194,1748844640635,-420.0,0.00019178,2]
[363722195,1748844640645,-420.0,0.00019178,2]
[363722196,1748844640654,-453.43,0.00019178,2]
[363722197,1748844640664,-420.0,0.00019178,2]
[363722198,1748844640673,-671.38,0.00019178,2]
[363722200,1748844640683,-420.0,0.00019178,2]
[363722201,1748844640692,-420.0,0.00019178,2]
[363722202,1748844640702,-984.6116549,0.00019178,2]
[363722204,1748844640718,-514.6283451,0.00019178,2]
[363722205,1748844640730,-475.55,0.00019178,2]
[363722206,1748844640739,-420.0,0.00019178,2]
[363722207,1748844640748,-420.0,0.00019178,2]
[363722208,1748844640759,-716.05,0.00019178,2]
[363722209,1748844640770,-506.06,0.00019178,2]
[363722210,1748844640780,-420.0,0.00019178,2]
[363722211,1748844640789,-420.0,0.00019178,2]
[363722212,1748844640798,-420.0,0.00019178,2]
[363722213,1748844640809,-420.0,0.00019178,2]
[363722214,1748844640819,-420.0,0.00019178,2]
[363722215,1748844640828,-296.97256751,0.00019178,2]
[363722216,1748844640838,-420.0,0.00019178,2]
[363722217,1748844640849,-420.0,0.00019178,2]
[363722218,1748844640858,-420.0,0.00019178,2]
[363722219,1748844640868,-420.0,0.00019178,2]
[363722220,1748844640877,-420.0,0.00019178,2]
[363722221,1748844640887,-256.91524094,0.00019178,2]
[363722222,1748844640896,-420.0,0.00019178,2]
[363722223,1748844640907,-327.56307503,0.00019178,2]
[363722224,1748844640918,-420.0,0.00019178,2]
[363722225,1748844640927,-420.0,0.00019178,2]
[363722226,1748844640937,-420.0,0.00019178,2]
[363722227,1748844640946,-420.0,0.00019178,2]
[363722228,1748844640955,-1711.11,0.00019178,2]
[363722229,1748844640964,-251.28681627,0.00019178,2]
[363722230,1748844640974,-420.0,0.00019178,2]
[363722231,1748844640983,-5734.79,0.00019178,2]
[363722232,1748844640992,-420.0,0.00019178,2]
[363722233,1748844641001,-326.07,0.00019178,2]
[363722234,1748844641011,-420.0,0.00019178,2]
[363722235,1748844641020,-420.0,0.00019178,2]
[363722236,1748844641029,-420.0,0.00019178,2]
[363722237,1748844641038,-420.0,0.00019178,2]
[363722238,1748844641048,-420.0,0.00019178,2]
[363722239,1748844641057,-463.91,0.00019178,2]
[363722240,1748844641067,-420.0,0.00019178,2]
[363722241,1748844641076,-420.0,0.00019178,2]
[363722242,1748844641086,-420.0,0.00019178,2]
[363722243,1748844641095,-420.0,0.00019178,2]
[363722244,1748844641105,-420.0,0.00019178,2]
[363722245,1748844641114,-420.0,0.00019178,2]
[363722246,1748844641125,-420.0,0.00019178,2]
[363722247,1748844641134,-420.0,0.00019178,2]
[363722248,1748844641144,-533.05,0.00019178,2]
[363722249,1748844641153,-420.0,0.00019178,2]
[363722250,1748844641162,-420.0,0.00019178,2]
[363722251,1748844641171,-255.43993969,0.00019178,2]
[363722252,1748844641180,-420.0,0.00019178,2]
[363722253,1748844641189,-338.35324559,0.00019178,2]
[363722254,1748844641199,-420.0,0.00019178,2]
[363722255,1748844641208,-1085.52,0.00019178,2]
[363722256,1748844641219,-420.0,0.00019178,2]
[363722257,1748844641229,-420.0,0.00019178,2]
[363722258,1748844641240,-467.28,0.00019178,2]
[363722259,1748844641251,-193.34,0.00019178,2]
[363722260,1748844641261,-420.0,0.00019178,2]
[363722261,1748844641472,-420.0,0.00019178,2]
[363722262,1748844641483,-458.6,0.00019178,2]
[363722263,1748844641492,-420.0,0.00019178,2]
[363722264,1748844641501,-420.0,0.00019178,2]
[363722265,1748844641510,-420.0,0.00019178,2]
[363722266,1748844641520,-420.0,0.00019178,2]
[363722267,1748844641529,-420.0,0.00019178,2]
[363722268,1748844641539,-189.84,0.00019178,2]
[363722269,1748844641549,-420.0,0.00019178,2]
[363722270,1748844641559,-420.0,0.00019178,2]
[363722271,1748844641568,-466.88,0.00019178,2]
[363722272,1748844641578,-420.0,0.00019178,2]
[363722273,1748844641587,-320.87,0.00019178,2]
[363722274,1748844641598,-420.0,0.00019178,2]
[363722275,1748844641607,-420.0,0.00019178,2]
[363722276,1748844641617,-425.96,0.00019178,2]
[363722277,1748844641627,-420.0,0.00019178,2]
[363722278,1748844641637,-420.0,0.00019178,2]
[363722279,1748844641647,-420.0,0.00019178,2]
[363722280,1748844641656,-420.0,0.00019178,2]
[363722281,1748844641666,-450.58783089,0.00019178,2]
[363722282,1748844641676,-420.0,0.00019178,2]
[363722283,1748844641685,-420.0,0.00019178,2]
[363722284,1748844641695,-1942.16,0.00019178,2]
[363722285,1748844641704,-420.0,0.00019178,2]
[363722286,1748844641713,-420.0,0.00019178,2]
[363722287,1748844641723,-987.05,0.00019178,2]
[363722288,1748844641733,-420.0,0.00019178,2]
[363722289,1748844641742,-370.38,0.00019178,2]
[363722290,1748844641752,-1158.41,0.00019178,2]
[363722291,1748844641762,-420.0,0.00019178,2]
[363722292,1748844641772,-420.0,0.00019178,2]
[363722293,1748844641781,-532.54,0.00019178,2]
[363722294,1748844641791,-420.0,0.00019178,2]
[363722295,1748844641800,-420.0,0.00019178,2]
[363722296,1748844641809,-246.9477311,0.00019178,2]
[363722297,1748844641819,-420.0,0.00019178,2]
[363722298,1748844641828,-420.0,0.00019178,2]
[363722299,1748844641838,-420.0,0.00019178,2]
[363722300,1748844641848,-420.0,0.00019178,2]
[363722301,1748844641857,-420.0,0.00019178,2]
[363722302,1748844641867,-468.25,0.00019178,2]
[363722303,1748844641876,-420.0,0.00019178,2]
[363722304,1748844641885,-420.0,0.00019178,2]
[363722305,1748844641894,-425.45,0.00019178,2]
[363722306,1748844641903,-282.01,0.00019178,2]
[363722307,1748844641912,-420.0,0.00019178,2]
[363722308,1748844641922,-11.48273218,0.00019178,2]
[363722309,1748844641935,-408.51726782,0.00019178,2]
[363722310,1748844641944,-45.36113218,0.00019178,2]
[363722311,1748844641955,-374.63886782,0.00019178,2]
[363722312,1748844641964,-420.0,0.00019178,2]
[363722313,1748844641974,-420.0,0.00019178,2]
[363722314,1748844641984,-420.0,0.00019178,2]
[363722315,1748844641994,-425.14336919,0.00019178,2]
[363722316,1748844642004,-421.03905839,0.00019178,2]
[363722317,1748844642014,-420.0,0.00019178,2]
[363722318,1748844642023,-1004.27,0.00019178,2]
[363722319,1748844642032,-549.66,0.00019178,2]
[363722320,1748844642042,-1504.81,0.00019178,2]
[363722321,1748844642051,-422.60262412,0.00019178,2]
[363722322,1748844642060,-420.0,0.00019178,2]
[363722323,1748844642071,-420.0,0.00019178,2]
[363722324,1748844642080,-12903.59945132,0.00019215,2]
[363722325,1748844642090,-500.0,0.00019287,2]
[363722326,1748844642099,-12903.59945132,0.00019291,2]
[363722327,1748844642109,-500.0,0.00019314,2]
[363722328,1748844642118,-420.0,0.00019315,2]
[363722329,1748844642127,-420.0,0.00019315,2]
[363722330,1748844642137,-420.0,0.00019315,2]
[363722331,1748844642146,-420.0,0.00019315,2]
[363722332,1748844642157,-420.0,0.00019315,2]
[363722333,1748844642167,-452.95,0.00019315,2]
[363722334,1748844642176,-181.73278548,0.00019315,2]
[363722335,1748844642185,-420.0,0.00019315,2]
[363722336,1748844642194,-482.5430764,0.00019315,2]
[363722337,1748844642204,-420.0,0.00019315,2]
[363722338,1748844642214,-317.02,0.00019315,2]
[363722339,1748844642223,-420.0,0.00019315,2]
[363722340,1748844642232,-420.0,0.00019315,2]
[363722341,1748844642241,-323.12983805,0.00019315,2]
[363722342,1748844642250,-207.63372081,0.00019315,2]
[363722343,1748844642260,-420.0,0.00019315,2]
[363722344,1748844642269,-154.44216338,0.00019315,2]
[363722345,1748844642279,-241.14593118,0.00019315,2]
[363722346,1748844642288,-420.0,0.00019315,2]
[363722347,1748844642297,-420.0,0.00019315,2]
[363722348,1748844642307,-420.0,0.00019315,2]
[363722349,1748844642316,-420.0,0.00019315,2]
[363722350,1748844642325,-423.99684182,0.00019315,2]
[363722351,1748844642335,-420.0,0.00019315,2]
[363722352,1748844642344,-420.0,0.00019315,2]
[363722353,1748844642354,-420.0,0.00019315,2]
[363722354,1748844642364,-420.0,0.00019315,2]
[363722355,1748844642374,-420.0,0.00019315,2]
[363722356,1748844642384,-420.0,0.00019315,2]
[363722357,1748844642395,-1127.38,0.00019315,2]
[363722358,1748844642406,-287.22925682,0.00019315,2]
[363722359,1748844642416,-734.09,0.00019315,2]
[363722360,1748844642426,-420.0,0.00019315,2]
[363722361,1748844642435,-420.0,0.00019315,2]
[363722362,1748844642444,-726.81,0.00019315,2]
[363722363,1748844642454,-305.18563026,0.00019315,2]
[363722364,1748844642463,-420.0,0.00019315,2]
[363722365,1748844642472,-420.0,0.00019315,2]
[363722366,1748844642482,-420.0,0.00019315,2]
[363722367,1748844642491,-420.0,0.00019315,2]
[363722368,1748844642500,-420.0,0.00019315,2]
[363722369,1748844642509,-420.0,0.00019315,2]
[363722370,1748844642519,-523.94,0.00019315,2]
[363722371,1748844642528,-962.5,0.00019315,2]
[363722372,1748844642537,-608.51,0.00019315,2]
[363722373,1748844642547,-420.0,0.00019315,2]
[363722374,1748844642556,-420.0,0.00019315,2]
[363722375,1748844642566,-533.00747578,0.00019315,2]
[363722376,1748844642575,-420.0,0.00019315,2]
[363722377,1748844642584,-797.13,0.00019315,2]
[363722378,1748844642595,-4868.58,0.00019315,2]
[363722379,1748844642604,-420.0,0.00019315,2]
[363722380,1748844642613,-420.0,0.00019315,2]
[363722381,1748844642623,-362.36,0.00019315,2]
[363722382,1748844642632,-453.43,0.00019315,2]
[363722383,1748844642641,-420.0,0.00019315,2]
[363722384,1748844642651,-671.38,0.00019315,2]
[363722385,1748844642660,-533.99,0.00019315,2]
[363722386,1748844642670,-420.0,0.00019315,2]
[363722387,1748844642679,-1499.24,0.00019315,2]
[363722388,1748844642689,-420.0,0.00019315,2]
[363722389,1748844642699,-420.0,0.00019315,2]
[363722390,1748844642708,-716.05,0.00019315,2]
[363722391,1748844642718,-506.06,0.00019315,2]
[363722392,1748844642729,-420.0,0.00019315,2]
[363722393,1748844642739,-420.0,0.00019315,2]
[363722394,1748844642748,-420.0,0.00019315,2]
[363722395,1748844642758,-420.0,0.00019315,2]
[363722396,1748844642767,-155.74,0.00019315,2]
[363722397,1748844642777,-420.0,0.00019315,2]
[363722398,1748844642786,-420.0,0.00019315,2]
[363722399,1748844642796,-420.0,0.00019315,2]
[363722400,1748844642806,-420.0,0.00019315,2]
[363722401,1748844642816,-420.0,0.00019315,2]
[363722402,1748844642826,-420.0,0.00019315,2]
[363722403,1748844642836,-1711.11,0.00019315,2]
[363722404,1748844642846,-420.0,0.00019315,2]
[363722405,1748844642855,-5734.79,0.00019315,2]
[363722406,1748844642865,-277.47552074,0.00019315,2]
[363722407,1748844642874,-442.0625276,0.00019315,2]
[363722408,1748844642883,-433.99,0.00019315,2]
[363722409,1748844642893,-420.0,0.00019315,2]
[363722410,1748844642902,-420.0,0.00019315,2]
[363722411,1748844642911,-463.91,0.00019315,2]
[363722412,1748844642920,-420.0,0.00019315,2]
[363722413,1748844642930,-420.0,0.00019315,2]
[363722414,1748844642939,-420.0,0.00019315,2]
[363722415,1748844642947,-420.0,0.00019315,2]
[363722416,1748844642955,-420.0,0.00019315,2]
[363722417,1748844642965,-420.0,0.00019315,2]
[363722419,1748844642974,-420.0,0.00019315,2]
[363722420,1748844642983,-420.0,0.00019315,2]
[363722422,1748844642992,-420.0,0.00019315,2]
[363722424,1748844643003,-420.0,0.00019315,2]
[363722426,1748844643016,-420.0,0.00019315,2]
[363722428,1748844643026,-1085.52,0.00019315,2]
[363722430,1748844643036,-538.2209239,0.00019315,2]
[363722431,1748844643046,-467.28,0.00019315,2]
[363722432,1748844643057,-420.0,0.00019315,2]
[363722433,1748844643066,-420.0,0.00019315,2]
[363722434,1748844643076,-458.6,0.00019315,2]
[363722435,1748844643086,-420.0,0.00019315,2]
[363722436,1748844643095,-420.0,0.00019315,2]
[363722437,1748844643104,-420.0,0.00019315,2]
[363722438,1748844643113,-420.0,0.00019315,2]
[363722439,1748844643123,-420.0,0.00019315,2]
[363722440,1748844643132,-466.88,0.00019315,2]
[363722441,1748844643142,-420.0,0.00019315,2]
[363722442,1748844643151,-420.0,0.00019315,2]
[363722443,1748844643160,-420.0,0.00019315,2]
[363722444,1748844643169,-420.0,0.00019315,2]
[363722445,1748844643179,-420.0,0.00019315,2]
[363722446,1748844643188,-420.0,0.00019315,2]
[363722447,1748844643198,-512.1,0.00019315,2]
[363722448,1748844643207,-420.0,0.00019315,2]
[363722449,1748844643216,-420.0,0.00019315,2]
[363722450,1748844643226,-1942.16,0.00019315,2]
[363722451,1748844643235,-420.0,0.00019315,2]
[363722452,1748844643245,-420.0,0.00019315,2]
[363722453,1748844643254,-987.05,0.00019315,2]
[363722454,1748844643263,-420.0,0.00019315,2]
[363722455,1748844643272,-1158.41,0.00019315,2]
[363722456,1748844643281,-420.0,0.00019315,2]
[363722457,1748844643291,-420.0,0.00019315,2]
[363722458,1748844643300,-532.54,0.00019315,2]
[363722459,1748844643309,-420.0,0.00019315,2]
[363722460,1748844643319,-420.0,0.00019315,2]
[363722461,1748844643328,-420.0,0.00019315,2]
[363722462,1748844643337,-420.0,0.00019315,2]
[363722463,1748844643347,-420.0,0.00019315,2]
[363722464,1748844643357,-468.25,0.00019315,2]
[363722465,1748844643366,-420.0,0.00019315,2]
[363722466,1748844643375,-420.0,0.00019315,2]
[363722467,1748844643385,-425.45,0.00019315,2]
[363722468,1748844643394,-420.0,0.00019315,2]
[363722469,1748844643403,-420.0,0.00019315,2]
[363722470,1748844643413,-227.44,0.00019315,2]
[363722471,1748844643422,-420.0,0.00019315,2]
[363722472,1748844643431,-420.0,0.00019315,2]
[363722473,1748844643441,-420.0,0.00019315,2]
[363722474,1748844643450,-1004.27,0.00019315,2]
[363722476,1748844643459,-549.66,0.00019315,2]
[363722477,1748844643468,-1504.81,0.00019315,2]
[363722478,1748844643477,-420.0,0.00019315,2]
[363722479,1748844643486,-500.0,0.00019342,2]
[363722480,1748844643495,-1000.0,0.00019352,2]
[363722481,1748844643504,-5073.80619131,0.00019362,2]
[363722483,1748844643514,-12903.59945132,0.00019367,2]
[363722485,1748844643523,-500.0,0.00019369,2]
[363722486,1748844643533,-500.0,0.00019397,2]
[363722487,1748844643542,-1000.0,0.000194,7]
[363722488,1748844643551,-12903.59945132,0.00019443,2]
[363722489,1748844643561,-420.0,0.00019452,2]
[363722490,1748844643570,-420.0,0.00019452,2]
[363722491,1748844643580,-420.0,0.00019452,2]
[363722492,1748844643589,-420.0,0.00019452,2]
[363722494,1748844643600,-420.0,0.00019452,2]
[363722495,1748844643610,-452.95,0.00019452,2]
[363722496,1748844643619,-420.0,0.00019452,2]
[363722497,1748844643630,-420.0,0.00019452,2]
[363722498,1748844643639,-420.0,0.00019452,2]
[363722499,1748844643649,-420.0,0.00019452,2]
[363722500,1748844643658,-420.0,0.00019452,2]
[363722501,1748844643667,-420.0,0.00019452,2]
[363722502,1748844643676,-420.0,0.00019452,2]
[363722503,1748844643686,-174.3044577,0.00019452,2]
[363722504,1748844643695,-420.0,0.00019452,2]
[363722505,1748844643704,-420.0,0.00019452,2]
[363722506,1748844643713,-420.0,0.00019452,2]
[363722507,1748844643723,-420.0,0.00019452,2]
[363722508,1748844643732,-432.53740769,0.00019452,2]
[363722509,1748844643743,-528.88125282,0.00019452,2]
[363722510,1748844643752,-420.0,0.00019452,2]
[363722511,1748844643763,-1127.38,0.00019452,2]
[363722512,1748844643772,-734.09,0.00019452,2]
[363722513,1748844643782,-420.0,0.00019452,2]
[363722514,1748844643791,-726.81,0.00019452,2]
[363722515,1748844643802,-420.0,0.00019452,2]
[363722516,1748844643812,-420.0,0.00019452,2]
[363722517,1748844643821,-420.0,0.00019452,2]
[363722518,1748844643830,-420.0,0.00019452,2]
[363722519,1748844643840,-420.0,0.00019452,2]
[363722520,1748844643851,-420.0,0.00019452,2]
[363722521,1748844643860,-523.94,0.00019452,2]
[363722522,1748844643869,-962.5,0.00019452,2]
[363722523,1748844643879,-608.51,0.00019452,2]
[363722524,1748844643888,-508.4,0.00019452,2]
[363722525,1748844643898,-420.0,0.00019452,2]
[363722526,1748844643907,-420.0,0.00019452,2]
[363722527,1748844643916,-797.13,0.00019452,2]
[363722528,1748844643925,-4868.58,0.00019452,2]
[363722529,1748844643934,-420.0,0.00019452,2]
[363722530,1748844643943,-420.0,0.00019452,2]
[363722531,1748844643952,-453.43,0.00019452,2]
[363722532,1748844643962,-365.17,0.00019452,2]
[363722533,1748844643971,-671.38,0.00019452,2]
[363722534,1748844643980,-420.0,0.00019452,2]
[363722535,1748844643989,-1499.24,0.00019452,2]
[363722536,1748844643998,-420.0,0.00019452,2]
[363722537,1748844644008,-420.0,0.00019452,2]
[363722538,1748844644017,-716.05,0.00019452,2]
[363722539,1748844644026,-506.06,0.00019452,2]
[363722540,1748844644037,-420.0,0.00019452,2]
[363722541,1748844644048,-420.0,0.00019452,2]
[363722542,1748844644058,-420.0,0.00019452,2]
[363722543,1748844644067,-420.0,0.00019452,2]
[363722544,1748844644077,-420.0,0.00019452,2]
[363722545,1748844644088,-420.0,0.00019452,2]
[363722546,1748844644098,-420.0,0.00019452,2]
[363722547,1748844644108,-420.0,0.00019452,2]
[363722548,1748844644117,-420.0,0.00019452,2]
[363722549,1748844644127,-420.0,0.00019452,2]
[363722550,1748844644136,-1711.11,0.00019452,2]
[363722551,1748844644148,-420.0,0.00019452,2]
[363722552,1748844644158,-5734.79,0.00019452,2]
[363722553,1748844644167,-420.0,0.00019452,2]
[363722554,1748844644176,-420.0,0.00019452,2]
[363722555,1748844644186,-463.91,0.00019452,2]
[363722556,1748844644196,-410.46810516,0.00019452,2]
[363722557,1748844644207,-420.0,0.00019452,2]
[363722558,1748844644216,-420.0,0.00019452,2]
[363722559,1748844644226,-420.0,0.00019452,2]
[363722560,1748844644235,-420.0,0.00019452,2]
[363722561,1748844644245,-420.0,0.00019452,2]
[363722562,1748844644255,-296.08842008,0.00019452,2]
[363722563,1748844644264,-420.0,0.00019452,2]
[363722564,1748844644273,-420.0,0.00019452,2]
[363722565,1748844644283,-420.0,0.00019452,2]
[363722566,1748844644294,-420.0,0.00019452,2]
[363722567,1748844644305,-1085.52,0.00019452,2]
[363722568,1748844644314,-467.28,0.00019452,2]
[363722569,1748844644323,-420.0,0.00019452,2]
[363722570,1748844644333,-420.0,0.00019452,2]
[363722571,1748844644343,-458.6,0.00019452,2]
[363722572,1748844644352,-420.0,0.00019452,2]
[363722573,1748844644361,-420.0,0.00019452,2]
[363722574,1748844644371,-254.06,0.00019452,2]
[363722575,1748844644380,-420.0,0.00019452,2]
[363722576,1748844644389,-420.0,0.00019452,2]
[363722577,1748844644399,-466.88,0.00019452,2]
[363722578,1748844644408,-192.53480049,0.00019452,2]
[363722579,1748844644417,-420.0,0.00019452,2]
[363722580,1748844644426,-420.0,0.00019452,2]
[363722581,1748844644436,-420.0,0.00019452,2]
[363722582,1748844644445,-520.97,0.00019452,2]
[363722583,1748844644455,-420.0,0.00019452,2]
[363722584,1748844644465,-420.0,0.00019452,2]
[363722585,1748844644474,-420.0,0.00019452,2]
[363722586,1748844644484,-1942.16,0.00019452,2]
[363722587,1748844644494,-420.0,0.00019452,2]
[363722588,1748844644504,-429.4140529,0.00019452,2]
[363722589,1748844644514,-987.05,0.00019452,2]
[363722590,1748844644523,-420.0,0.00019452,2]
[363722591,1748844644534,-1158.41,0.00019452,2]
[363722592,1748844644544,-420.0,0.00019452,2]
[363722593,1748844644554,-420.0,0.00019452,2]
[363722594,1748844644563,-532.54,0.00019452,2]
[363722595,1748844644573,-420.0,0.00019452,2]
[363722596,1748844644582,-420.0,0.00019452,2]
[363722597,1748844644593,-420.0,0.00019452,2]
[363722598,1748844644602,-420.0,0.00019452,2]
[363722599,1748844644612,-324.42122587,0.00019452,2]
[363722600,1748844644622,-468.25,0.00019452,2]
[363722601,1748844644631,-420.0,0.00019452,2]
[363722602,1748844644640,-425.45,0.00019452,2]
[363722603,1748844644650,-420.0,0.00019452,2]
[363722604,1748844644660,-215.79,0.00019452,2]
[363722605,1748844644669,-420.0,0.00019452,2]
[363722606,1748844644679,-420.0,0.00019452,2]
[363722607,1748844644688,-420.0,0.00019452,2]
[363722608,1748844644697,-1004.27,0.00019452,2]
[363722609,1748844644707,-549.66,0.00019452,2]
[363722610,1748844644717,-1504.81,0.00019452,2]
[363722611,1748844644729,-420.0,0.00019452,2]
[363722612,1748844644739,-168.86447668,0.00019489,2]
[363722613,1748844644748,-174.20795607,0.00019499,2]
[363722614,1748844644758,-2100.0,0.000195,7]
[363722615,1748844644767,-326.14,0.000195,2]
[363722616,1748844644777,-1161.54,0.000195,2]
[363722617,1748844644786,-806.99,0.000195,2]
[363722618,1748844644796,-1161.54,0.000195,2]
[363722619,1748844644807,-806.99,0.000195,2]
[363722620,1748844644817,-1161.54,0.000195,2]
[363722621,1748844644826,-163.07,0.000195,2]